[Event "Late-Titled-Tuesday-Blitz-March-19-2024"]
[Site "Chess.com"]
[Date "2024.03.19"]
[Round "4"]
[White "GMBenjaminBok"]
[Black "Onischuk_V"]
[Result "1/2-1/2"]
[WhiteElo "2965"]
[BlackElo "2808"]
[TimeControl "180+1"]
[EndTime "14:39:38 PDT"]
[Termination "Game drawn by repetition"]

1. d4 {[%clk 0:03:00.9]} 1... d6 {[%clk 0:02:59.9]} 2. Nf3 {[%clk 0:03:00.6]}
2... g6 {[%clk 0:03:00]} 3. c4 {[%clk 0:02:58.4]} 3... Bg7 {[%clk 0:03:00.4]} 4.
Nc3 {[%clk 0:02:59.1]} 4... e5 {[%clk 0:03:00.2]} 5. dxe5 {[%clk 0:02:31.3]}
5... dxe5 {[%clk 0:03:00.1]} 6. Qxd8+ {[%clk 0:02:32.2]} 6... Kxd8 {[%clk
0:03:00.5]} 7. Be3 {[%clk 0:02:33.1]} 7... f6 {[%clk 0:02:50.6]} 8. O-O-O+
{[%clk 0:02:33.3]} 8... Nd7 {[%clk 0:02:51.2]} 9. g4 {[%clk 0:02:21.2]} 9... Nh6
{[%clk 0:02:26.6]} 10. g5 {[%clk 0:01:41.7]} 10... Ng4 {[%clk 0:02:26.7]} 11.
gxf6 {[%clk 0:01:42.2]} 11... Bxf6 {[%clk 0:02:25.2]} 12. Bg5 {[%clk 0:01:39.7]}
12... Bxg5+ {[%clk 0:01:42.1]} 13. Nxg5 {[%clk 0:01:40.6]} 13... Nxf2 {[%clk
0:01:42.4]} 14. Nf7+ {[%clk 0:01:27.6]} 14... Ke7 {[%clk 0:01:42.5]} 15. Nxh8
{[%clk 0:01:28.2]} 15... Nf6 {[%clk 0:01:42.9]} 16. Bg2 {[%clk 0:00:57.2]} 16...
Be6 {[%clk 0:01:39.6]} 17. Nxg6+ {[%clk 0:00:53.3]} 17... hxg6 {[%clk 0:01:39]}
18. Bxb7 {[%clk 0:00:54.2]} 18... Rh8 {[%clk 0:01:34.9]} 19. b3 {[%clk
0:00:26.6]} 19... N6g4 {[%clk 0:00:56.8]} 20. Nb5 {[%clk 0:00:14.2]} 20... Nxd1
{[%clk 0:00:39.5]} 21. Rxd1 {[%clk 0:00:15.1]} 21... Rxh2 {[%clk 0:00:38.9]} 22.
Nxc7 {[%clk 0:00:15.4]} 22... Ne3 {[%clk 0:00:35.1]} 23. Rd2 {[%clk 0:00:10.2]}
23... g5 {[%clk 0:00:29.3]} 24. Kb2 {[%clk 0:00:04.5]} 24... g4 {[%clk
0:00:27.9]} 25. Kc3 {[%clk 0:00:04]} 25... g3 {[%clk 0:00:27.6]} 26. Nxe6 {[%clk
0:00:03.9]} 26... Kxe6 {[%clk 0:00:27.3]} 27. Kd3 {[%clk 0:00:03.6]} 27... g2
{[%clk 0:00:23.8]} 28. Bxg2 {[%clk 0:00:04.2]} 28... Nxg2 {[%clk 0:00:24]} 29.
Kc3 {[%clk 0:00:03.5]} 29... Nf4 {[%clk 0:00:22.2]} 30. e3 {[%clk 0:00:04]}
30... Rxd2 {[%clk 0:00:20.6]} 31. Kxd2 {[%clk 0:00:04.9]} 31... Nh5 {[%clk
0:00:17.8]} 32. Kd3 {[%clk 0:00:04.6]} 32... Nf6 {[%clk 0:00:17.5]} 33. b4
{[%clk 0:00:04.9]} 33... Kd6 {[%clk 0:00:17]} 34. a3 {[%clk 0:00:05.1]} 34...
Kc6 {[%clk 0:00:16.4]} 35. Kc3 {[%clk 0:00:05.4]} 35... Ne4+ {[%clk 0:00:08.6]}
36. Kd3 {[%clk 0:00:05.8]} 36... Nf6 {[%clk 0:00:06.7]} 37. Kc3 {[%clk
0:00:05.7]} 37... a6 {[%clk 0:00:07.2]} 38. Kd3 {[%clk 0:00:05.9]} 38... Kd6
{[%clk 0:00:06.5]} 39. Kc3 {[%clk 0:00:06.1]} 39... Ne4+ {[%clk 0:00:05.2]} 40.
Kd3 {[%clk 0:00:06.5]} 40... Nf2+ {[%clk 0:00:05.4]} 41. Ke2 {[%clk 0:00:06.7]}
41... Ng4 {[%clk 0:00:05.9]} 42. Kd3 {[%clk 0:00:06.6]} 42... Nf6 {[%clk
0:00:05.9]} 43. Kc3 {[%clk 0:00:06.7]} 43... Ke6 {[%clk 0:00:05.7]} 44. Kd3
{[%clk 0:00:06.6]} 44... Ne8 {[%clk 0:00:04.8]} 45. a4 {[%clk 0:00:06.5]} 45...
Nd6 {[%clk 0:00:04.1]} 46. c5 {[%clk 0:00:06.8]} 46... Nf5 {[%clk 0:00:01.9]}
47. e4 {[%clk 0:00:06.5]} 47... Ne7 {[%clk 0:00:02.6]} 48. b5 {[%clk 0:00:05.6]}
48... axb5 {[%clk 0:00:02.5]} 49. axb5 {[%clk 0:00:06.5]} 49... Kd7 {[%clk
0:00:02.7]} 50. Kc4 {[%clk 0:00:06.5]} 50... Kc7 {[%clk 0:00:03.2]} 51. Kb4
{[%clk 0:00:06]} 51... Kb7 {[%clk 0:00:03.5]} 52. Kc4 {[%clk 0:00:06]} 52... Kc7
{[%clk 0:00:03.7]} 53. Kb3 {[%clk 0:00:03.4]} 53... Kb7 {[%clk 0:00:03.6]} 54.
Kc3 {[%clk 0:00:03.2]} 54... Kc7 {[%clk 0:00:03.8]} 55. Kc4 {[%clk 0:00:03.6]}
55... Kb7 {[%clk 0:00:04.1]} 56. Kb4 {[%clk 0:00:03.7]} 56... Kc7 {[%clk
0:00:04.2]} 57. Kc4 {[%clk 0:00:04.1]} 57... Kb7 {[%clk 0:00:04.6]} 58. Kb4
{[%clk 0:00:04.2]} 58... Kc7 {[%clk 0:00:05]} 59. Kc4 {[%clk 0:00:04.5]} 1/2-1/2

[Event "Late-Titled-Tuesday-Blitz-March-19-2024"]
[Site "Chess.com"]
[Date "2024.03.19"]
[Round "4"]
[White "Sanyura"]
[Black "chess_blitz00"]
[Result "1-0"]
[WhiteElo "2639"]
[BlackElo "2439"]
[TimeControl "180+1"]
[EndTime "14:39:39 PDT"]
[Termination "Sanyura won on time"]

1. Nf3 {[%clk 0:02:51]} 1... d6 {[%clk 0:03:00.9]} 2. g3 {[%clk 0:02:50.5]} 2...
Nc6 {[%clk 0:02:59.6]} 3. c4 {[%clk 0:02:50.9]} 3... Bd7 {[%clk 0:02:59.9]} 4.
Bg2 {[%clk 0:02:51.4]} 4... Qc8 {[%clk 0:02:59.8]} 5. O-O {[%clk 0:02:51.2]}
5... g6 {[%clk 0:02:56.3]} 6. d4 {[%clk 0:02:52.1]} 6... Bg7 {[%clk 0:02:56.6]}
7. Nc3 {[%clk 0:02:49.9]} 7... Bh3 {[%clk 0:02:56.5]} 8. d5 {[%clk 0:02:49.3]}
8... Ne5 {[%clk 0:02:55.5]} 9. Nxe5 {[%clk 0:02:49.6]} 9... Bxe5 {[%clk
0:02:53.8]} 10. f4 {[%clk 0:02:47.9]} 10... Bg7 {[%clk 0:02:51.6]} 11. e4 {[%clk
0:02:47.6]} 11... h5 {[%clk 0:02:50.3]} 12. f5 {[%clk 0:02:47.4]} 12... Bxg2
{[%clk 0:02:49.4]} 13. Kxg2 {[%clk 0:02:48.3]} 13... Qd7 {[%clk 0:02:46.6]} 14.
Be3 {[%clk 0:02:46.5]} 14... a6 {[%clk 0:02:44.4]} 15. c5 {[%clk 0:02:43.8]}
15... dxc5 {[%clk 0:02:43.5]} 16. Bxc5 {[%clk 0:02:44.7]} 16... Nf6 {[%clk
0:02:36.2]} 17. e5 {[%clk 0:02:44.1]} 17... Ng4 {[%clk 0:02:27]} 18. e6 {[%clk
0:02:44.4]} 18... fxe6 {[%clk 0:01:21]} 19. fxe6 {[%clk 0:02:45.3]} 19... Qd6
{[%clk 0:01:15.3]} 20. Bxd6 {[%clk 0:02:44.6]} 20... Ne3+ {[%clk 0:01:15.5]} 21.
Kf3 {[%clk 0:02:38.2]} 21... Nxd1 {[%clk 0:01:13.8]} 22. Bxc7 {[%clk 0:02:37.9]}
22... Nxb2 {[%clk 0:00:47.9]} 23. Ne4 {[%clk 0:02:37.6]} 23... O-O+ {[%clk
0:00:45.9]} 24. Ke2 {[%clk 0:02:37]} 24... Nc4 {[%clk 0:00:41.5]} 25. Rxf8+
{[%clk 0:02:32.4]} 25... Rxf8 {[%clk 0:00:42.4]} 26. Rc1 {[%clk 0:02:32.8]}
26... b5 {[%clk 0:00:42.7]} 27. a4 {[%clk 0:01:30.9]} 27... Rc8 {[%clk
0:00:37.3]} 28. axb5 {[%clk 0:01:30.6]} 28... axb5 {[%clk 0:00:31.1]} 29. Bf4
{[%clk 0:01:22]} 29... Rd8 {[%clk 0:00:25.6]} 30. d6 {[%clk 0:01:07.3]} 30...
exd6 {[%clk 0:00:25.3]} 31. Rb1 {[%clk 0:01:04.7]} 31... Re8 {[%clk 0:00:20.3]}
32. Rxb5 {[%clk 0:00:58.9]} 32... Rxe6 {[%clk 0:00:20.5]} 33. Rb8+ {[%clk
0:00:58.9]} 33... Kf7 {[%clk 0:00:15.6]} 34. Kf3 {[%clk 0:00:56.2]} 34... Ne5+
{[%clk 0:00:13.3]} 35. Bxe5 {[%clk 0:00:56.1]} 35... Rxe5 {[%clk 0:00:14.2]} 36.
Nxd6+ {[%clk 0:00:55.9]} 36... Ke6 {[%clk 0:00:14.1]} 37. Ne4 {[%clk 0:00:55.5]}
37... Rf5+ {[%clk 0:00:14.5]} 38. Ke2 {[%clk 0:00:54.7]} 38... Be5 {[%clk
0:00:13.7]} 39. Rb6+ {[%clk 0:00:54.2]} 39... Kf7 {[%clk 0:00:13.6]} 40. h3
{[%clk 0:00:53.3]} 40... Kg7 {[%clk 0:00:10.4]} 41. Rb7+ {[%clk 0:00:49.9]}
41... Rf7 {[%clk 0:00:08.7]} 42. Rb6 {[%clk 0:00:45.7]} 42... Re7 {[%clk
0:00:08]} 43. Kf3 {[%clk 0:00:43.5]} 43... Rf7+ {[%clk 0:00:08.2]} 44. Kg2
{[%clk 0:00:43.8]} 44... Re7 {[%clk 0:00:08.9]} 45. Rc6 {[%clk 0:00:40.6]} 45...
Bd4 {[%clk 0:00:06.9]} 46. Ng5 {[%clk 0:00:40.5]} 46... Re2+ {[%clk 0:00:06.9]}
47. Kf3 {[%clk 0:00:40.2]} 47... Re3+ {[%clk 0:00:07.4]} 48. Kf4 {[%clk
0:00:40.2]} 48... Rd3 {[%clk 0:00:02.6]} 49. Ke4 {[%clk 0:00:38.1]} 49... Rxg3
{[%clk 0:00:01.9]} 50. Ne6+ {[%clk 0:00:37.3]} 50... Kh6 {[%clk 0:00:02.2]} 51.
Kxd4 {[%clk 0:00:35.3]} 51... Rxh3 {[%clk 0:00:02.6]} 52. Nf4 {[%clk 0:00:35.9]}
52... Rh4 {[%clk 0:00:03]} 53. Ke5 {[%clk 0:00:36.4]} 53... Rg4 {[%clk 0:00:03]}
54. Rc8 {[%clk 0:00:33]} 54... Kg5 {[%clk 0:00:03.2]} 55. Rc4 {[%clk 0:00:27.2]}
55... Kh4 {[%clk 0:00:02.5]} 56. Nxg6+ {[%clk 0:00:26.3]} 56... Kg5 {[%clk
0:00:03.2]} 57. Nf4 {[%clk 0:00:26.1]} 57... Kh4 {[%clk 0:00:03.6]} 58. Rc1
{[%clk 0:00:25.2]} 58... Kg5 {[%clk 0:00:03.7]} 59. Ne6+ {[%clk 0:00:23.2]}
59... Kg6 {[%clk 0:00:02.5]} 60. Rc6 {[%clk 0:00:23]} 60... Kh7 {[%clk
0:00:01.6]} 61. Kf6 {[%clk 0:00:21.8]} 61... Rg6+ {[%clk 0:00:01.4]} 62. Kf5
{[%clk 0:00:21.1]} 1-0

[Event "Late-Titled-Tuesday-Blitz-March-19-2024"]
[Site "Chess.com"]
[Date "2024.03.19"]
[Round "4"]
[White "DrKerfuffle"]
[Black "TheRigos"]
[Result "0-1"]
[WhiteElo "2837"]
[BlackElo "2569"]
[TimeControl "180+1"]
[EndTime "14:39:42 PDT"]
[Termination "TheRigos won by checkmate"]

1. e4 {[%clk 0:03:00.9]} 1... c5 {[%clk 0:02:59.1]} 2. Nf3 {[%clk 0:03:00.5]}
2... Nc6 {[%clk 0:02:59.6]} 3. Bb5 {[%clk 0:03:00.4]} 3... g6 {[%clk 0:02:59.5]}
4. Bxc6 {[%clk 0:03:00.9]} 4... bxc6 {[%clk 0:02:59.4]} 5. e5 {[%clk 0:03:01.8]}
5... Bg7 {[%clk 0:02:55.3]} 6. O-O {[%clk 0:03:02.7]} 6... Nh6 {[%clk
0:02:40.6]} 7. Nc3 {[%clk 0:03:00.3]} 7... O-O {[%clk 0:02:37.8]} 8. Re1 {[%clk
0:02:58.3]} 8... Nf5 {[%clk 0:02:22.7]} 9. Ne4 {[%clk 0:02:56.4]} 9... d6 {[%clk
0:02:22.2]} 10. exd6 {[%clk 0:02:55.6]} 10... exd6 {[%clk 0:02:21.6]} 11. d3
{[%clk 0:02:53.5]} 11... Rb8 {[%clk 0:02:20.3]} 12. c3 {[%clk 0:02:52.2]} 12...
h6 {[%clk 0:01:51.6]} 13. Qc2 {[%clk 0:02:39.8]} 13... g5 {[%clk 0:01:36.1]} 14.
b3 {[%clk 0:02:12.4]} 14... a5 {[%clk 0:01:16]} 15. Bb2 {[%clk 0:02:11.1]} 15...
a4 {[%clk 0:01:15.6]} 16. c4 {[%clk 0:02:11.1]} 16... Nd4 {[%clk 0:01:09.3]} 17.
Nxd4 {[%clk 0:02:08.8]} 17... cxd4 {[%clk 0:01:09.8]} 18. c5 {[%clk 0:02:00.8]}
18... d5 {[%clk 0:01:01.7]} 19. Nd6 {[%clk 0:02:00.6]} 19... Be6 {[%clk
0:00:49.9]} 20. bxa4 {[%clk 0:01:48.8]} 20... Qa5 {[%clk 0:00:44]} 21. Ba3
{[%clk 0:01:31.4]} 21... Ra8 {[%clk 0:00:35.9]} 22. h4 {[%clk 0:01:19.5]} 22...
Qxa4 {[%clk 0:00:33.8]} 23. Qxa4 {[%clk 0:01:20.1]} 23... Rxa4 {[%clk
0:00:33.9]} 24. Bc1 {[%clk 0:01:13.7]} 24... gxh4 {[%clk 0:00:33.8]} 25. a3
{[%clk 0:01:00]} 25... Rb8 {[%clk 0:00:32.6]} 26. Bd2 {[%clk 0:00:59.1]} 26...
Rb3 {[%clk 0:00:32]} 27. Bb4 {[%clk 0:00:59.2]} 27... Rxd3 {[%clk 0:00:32.2]}
28. Rad1 {[%clk 0:00:51.3]} 28... Rb3 {[%clk 0:00:25]} 29. Nb7 {[%clk 0:00:37]}
29... Ra8 {[%clk 0:00:16.7]} 30. Na5 {[%clk 0:00:34.1]} 30... Rxa5 {[%clk
0:00:09.6]} 31. Bxa5 {[%clk 0:00:35]} 31... Rxa3 {[%clk 0:00:10.5]} 32. Bc7
{[%clk 0:00:34.3]} 32... h3 {[%clk 0:00:08.6]} 33. Be5 {[%clk 0:00:33.1]} 33...
hxg2 {[%clk 0:00:06.8]} 34. Bxg7 {[%clk 0:00:31.8]} 34... Kxg7 {[%clk
0:00:06.9]} 35. Rxd4 {[%clk 0:00:31.5]} 35... Rc3 {[%clk 0:00:07.5]} 36. Kxg2
{[%clk 0:00:27]} 36... Rxc5 {[%clk 0:00:07.8]} 37. Re3 {[%clk 0:00:27.6]} 37...
Rc2 {[%clk 0:00:07]} 38. Rg3+ {[%clk 0:00:27.8]} 38... Kf6 {[%clk 0:00:07.4]}
39. Rf4+ {[%clk 0:00:27.9]} 39... Ke5 {[%clk 0:00:06.1]} 40. Rh4 {[%clk
0:00:28.4]} 40... c5 {[%clk 0:00:05.3]} 41. Rxh6 {[%clk 0:00:27.9]} 41... d4
{[%clk 0:00:04.5]} 42. Rg5+ {[%clk 0:00:26.8]} 42... Ke4 {[%clk 0:00:02.9]} 43.
Rh4+ {[%clk 0:00:20.5]} 43... Kd3 {[%clk 0:00:03.5]} 44. Kf3 {[%clk 0:00:21.4]}
44... c4 {[%clk 0:00:02.9]} 45. Rc5 {[%clk 0:00:21.9]} 45... Kc3 {[%clk
0:00:02.2]} 46. Kg3 {[%clk 0:00:19.7]} 46... d3 {[%clk 0:00:03.1]} 47. Kf4
{[%clk 0:00:09.1]} 47... d2 {[%clk 0:00:04]} 48. Rh1 {[%clk 0:00:08.5]} 48...
Rc1 {[%clk 0:00:04.5]} 49. Rh3+ {[%clk 0:00:05]} 49... Kb4 {[%clk 0:00:03.3]}
50. Rch5 {[%clk 0:00:03.5]} 50... d1=Q {[%clk 0:00:02.8]} 51. Rb5+ {[%clk
0:00:02.6]} 51... Kxb5 {[%clk 0:00:03]} 52. Rh4 {[%clk 0:00:03.5]} 52... Qd2+
{[%clk 0:00:03.1]} 53. Kg3 {[%clk 0:00:03.7]} 53... Rg1+ {[%clk 0:00:03.3]} 54.
Kf3 {[%clk 0:00:03]} 54... Qd3+ {[%clk 0:00:03.8]} 55. Kf4 {[%clk 0:00:03.3]}
55... Qd4+ {[%clk 0:00:04.4]} 56. Kf3 {[%clk 0:00:03.1]} 56... Qxh4 {[%clk
0:00:04.7]} 57. Ke2 {[%clk 0:00:03.8]} 57... Qe4+ {[%clk 0:00:04.9]} 58. Kd2
{[%clk 0:00:04.3]} 58... Qd3# {[%clk 0:00:05.8]} 0-1

[Event "Late-Titled-Tuesday-Blitz-March-19-2024"]
[Site "Chess.com"]
[Date "2024.03.19"]
[Round "4"]
[White "simaopdias"]
[Black "DeArron_Fox"]
[Result "0-1"]
[WhiteElo "2280"]
[BlackElo "2517"]
[TimeControl "180+1"]
[EndTime "14:39:48 PDT"]
[Termination "DeArron_Fox won by resignation"]

1. e4 {[%clk 0:03:00.3]} 1... c5 {[%clk 0:02:58.9]} 2. Nf3 {[%clk 0:03:00.9]}
2... e6 {[%clk 0:02:59.2]} 3. d4 {[%clk 0:03:01.6]} 3... cxd4 {[%clk 0:02:59.4]}
4. Nxd4 {[%clk 0:03:02.5]} 4... a6 {[%clk 0:02:59.9]} 5. c4 {[%clk 0:03:02.3]}
5... Nf6 {[%clk 0:02:59.2]} 6. Nc3 {[%clk 0:03:02.8]} 6... Qc7 {[%clk
0:02:59.9]} 7. Bd3 {[%clk 0:03:03.2]} 7... b6 {[%clk 0:03:00.3]} 8. Be3 {[%clk
0:03:03.1]} 8... Bb7 {[%clk 0:03:00.4]} 9. O-O {[%clk 0:03:02.9]} 9... Be7
{[%clk 0:02:58]} 10. Rc1 {[%clk 0:03:03]} 10... O-O {[%clk 0:02:57.7]} 11. Qe2
{[%clk 0:02:56.4]} 11... d6 {[%clk 0:02:56.1]} 12. Rfd1 {[%clk 0:02:54.8]} 12...
Nbd7 {[%clk 0:02:55.3]} 13. f4 {[%clk 0:02:54.6]} 13... Nc5 {[%clk 0:02:38.7]}
14. Bf2 {[%clk 0:02:54.4]} 14... Nxd3 {[%clk 0:02:25.5]} 15. Qxd3 {[%clk
0:02:54.7]} 15... Rac8 {[%clk 0:02:25.7]} 16. b3 {[%clk 0:02:47.6]} 16... Qb8
{[%clk 0:02:19.2]} 17. Qe2 {[%clk 0:02:45.9]} 17... Ba8 {[%clk 0:02:01]} 18. e5
{[%clk 0:02:37.1]} 18... Nd7 {[%clk 0:01:34.6]} 19. Bg3 {[%clk 0:02:36.3]} 19...
dxe5 {[%clk 0:01:21.9]} 20. fxe5 {[%clk 0:02:35.6]} 20... Rfd8 {[%clk
0:01:13.4]} 21. Kh1 {[%clk 0:02:15.5]} 21... Nf8 {[%clk 0:00:59.9]} 22. Nf3
{[%clk 0:02:15]} 22... Ng6 {[%clk 0:00:54.7]} 23. h4 {[%clk 0:02:05.9]} 23...
Bxf3 {[%clk 0:00:49.9]} 24. gxf3 {[%clk 0:02:04.1]} 24... Bxh4 {[%clk
0:00:46.1]} 25. Bxh4 {[%clk 0:02:03.6]} 25... Nxh4 {[%clk 0:00:47]} 26. Rg1
{[%clk 0:01:56.6]} 26... Ng6 {[%clk 0:00:40.5]} 27. Rce1 {[%clk 0:01:53.5]}
27... Rd4 {[%clk 0:00:39.6]} 28. Rg4 {[%clk 0:01:41.6]} 28... Rcd8 {[%clk
0:00:29.5]} 29. Re4 {[%clk 0:01:39]} 29... Rd2 {[%clk 0:00:16.5]} 30. Qf1 {[%clk
0:01:26.6]} 30... Rc2 {[%clk 0:00:14.9]} 31. Rc1 {[%clk 0:00:35.6]} 31... Rxc1
{[%clk 0:00:12.7]} 32. Qxc1 {[%clk 0:00:36.5]} 32... Nxe5 {[%clk 0:00:13.3]} 33.
Qf4 {[%clk 0:00:36.7]} 33... Nc6 {[%clk 0:00:05]} 34. Qh4 {[%clk 0:00:33.4]}
34... Qd6 {[%clk 0:00:04.5]} 35. Ne2 {[%clk 0:00:28.1]} 35... Qd1+ {[%clk
0:00:03.2]} 36. Kg2 {[%clk 0:00:28.2]} 36... h6 {[%clk 0:00:03.4]} 37. Qf2
{[%clk 0:00:15.2]} 37... Rd2 {[%clk 0:00:03.3]} 38. Kg3 {[%clk 0:00:13.5]} 38...
Qc2 {[%clk 0:00:02.5]} 39. Re3 {[%clk 0:00:13.2]} 39... Ne7 {[%clk 0:00:02.9]}
40. Rc3 {[%clk 0:00:10.9]} 40... Nf5+ {[%clk 0:00:02.9]} 41. Kf4 {[%clk
0:00:11.1]} 41... Qd1 {[%clk 0:00:02.4]} 42. Rc1 {[%clk 0:00:06]} 42... Qxe2
{[%clk 0:00:02.3]} 43. Qxe2 {[%clk 0:00:05.2]} 43... Rxe2 {[%clk 0:00:03.2]} 44.
Rd1 {[%clk 0:00:05.1]} 44... Rxa2 {[%clk 0:00:03.4]} 45. Rd7 {[%clk 0:00:04.8]}
45... Kh7 {[%clk 0:00:04]} 46. Rxf7 {[%clk 0:00:04.7]} 46... Rb2 {[%clk
0:00:03.9]} 47. Rb7 {[%clk 0:00:05.6]} 47... Rxb3 {[%clk 0:00:04]} 48. Ra7
{[%clk 0:00:06.3]} 48... Rb4 {[%clk 0:00:03.9]} 49. Ke5 {[%clk 0:00:07.2]} 49...
Rxc4 {[%clk 0:00:04]} 50. Rxa6 {[%clk 0:00:08.1]} 50... Rc3 {[%clk 0:00:03.8]}
51. Kxe6 {[%clk 0:00:09]} 51... Rxf3 {[%clk 0:00:03.8]} 52. Rxb6 {[%clk
0:00:09.5]} 52... h5 {[%clk 0:00:04.3]} 53. Rb8 {[%clk 0:00:08.6]} 53... h4
{[%clk 0:00:04.4]} 54. Rb2 {[%clk 0:00:07.2]} 54... h3 {[%clk 0:00:04.6]} 55.
Rh2 {[%clk 0:00:08.1]} 55... Ne3 {[%clk 0:00:04.5]} 56. Ke5 {[%clk 0:00:08]}
56... Ng4+ {[%clk 0:00:05]} 57. Ke4 {[%clk 0:00:07.7]} 57... Nxh2 {[%clk
0:00:05.9]} 0-1

[Event "Late-Titled-Tuesday-Blitz-March-19-2024"]
[Site "Chess.com"]
[Date "2024.03.19"]
[Round "4"]
[White "olga-belka"]
[Black "subham777"]
[Result "0-1"]
[WhiteElo "2302"]
[BlackElo "2528"]
[TimeControl "180+1"]
[EndTime "14:39:52 PDT"]
[Termination "subham777 won on time"]

1. e4 {[%clk 0:02:59.4]} 1... e6 {[%clk 0:03:00.1]} 2. d4 {[%clk 0:02:59.2]}
2... d5 {[%clk 0:03:00.5]} 3. Nd2 {[%clk 0:02:59]} 3... c5 {[%clk 0:03:00.2]} 4.
exd5 {[%clk 0:02:58.8]} 4... Qxd5 {[%clk 0:02:59.7]} 5. Ngf3 {[%clk 0:02:57.8]}
5... cxd4 {[%clk 0:02:59.6]} 6. Bc4 {[%clk 0:02:57.4]} 6... Qd7 {[%clk
0:02:54.7]} 7. O-O {[%clk 0:02:57]} 7... Nc6 {[%clk 0:02:55]} 8. Re1 {[%clk
0:02:55]} 8... Nf6 {[%clk 0:02:55.3]} 9. Nb3 {[%clk 0:02:54.2]} 9... a6 {[%clk
0:02:54.1]} 10. Nbxd4 {[%clk 0:02:50.2]} 10... Nxd4 {[%clk 0:02:55]} 11. Qxd4
{[%clk 0:02:49.1]} 11... Qxd4 {[%clk 0:02:53.8]} 12. Nxd4 {[%clk 0:02:49.4]}
12... Bd7 {[%clk 0:02:53.7]} 13. a4 {[%clk 0:02:47.7]} 13... Bc5 {[%clk
0:02:53.2]} 14. Nb3 {[%clk 0:02:42.9]} 14... Ba7 {[%clk 0:02:52.9]} 15. Be3
{[%clk 0:02:42.3]} 15... Bxe3 {[%clk 0:02:52.1]} 16. Rxe3 {[%clk 0:02:42.5]}
16... O-O {[%clk 0:02:51.7]} 17. a5 {[%clk 0:02:42.4]} 17... Rac8 {[%clk
0:02:51.4]} 18. Bd3 {[%clk 0:02:38]} 18... Nd5 {[%clk 0:02:50.9]} 19. Re4 {[%clk
0:02:35.1]} 19... Bc6 {[%clk 0:02:48.1]} 20. Nd4 {[%clk 0:02:22.9]} 20... Rfd8
{[%clk 0:02:42.9]} 21. Nxc6 {[%clk 0:02:16.4]} 21... Rxc6 {[%clk 0:02:43.8]} 22.
Rc4 {[%clk 0:02:11.8]} 22... Rxc4 {[%clk 0:02:41.6]} 23. Bxc4 {[%clk 0:02:11.8]}
23... Nf4 {[%clk 0:02:27.9]} 24. Kf1 {[%clk 0:02:07.7]} 24... Rd2 {[%clk
0:02:25.6]} 25. Rc1 {[%clk 0:01:57.7]} 25... g5 {[%clk 0:02:15]} 26. Ke1 {[%clk
0:01:57.4]} 26... Rd4 {[%clk 0:02:15]} 27. Bf1 {[%clk 0:01:52.4]} 27... Ra4
{[%clk 0:02:14.8]} 28. g3 {[%clk 0:01:49]} 28... Nd5 {[%clk 0:02:09.9]} 29. c4
{[%clk 0:01:44.4]} 29... Nb4 {[%clk 0:02:09]} 30. Rd1 {[%clk 0:01:37.5]} 30...
Rxa5 {[%clk 0:02:07.6]} 31. Rd7 {[%clk 0:01:33.7]} 31... Ra1+ {[%clk 0:02:01.7]}
32. Ke2 {[%clk 0:01:33.8]} 32... b5 {[%clk 0:01:56.4]} 33. cxb5 {[%clk
0:01:31.5]} 33... axb5 {[%clk 0:01:56.9]} 34. Rb7 {[%clk 0:01:29.1]} 34... Nc6
{[%clk 0:01:53]} 35. Bg2 {[%clk 0:01:21]} 35... Nd4+ {[%clk 0:01:51.1]} 36. Kd3
{[%clk 0:01:17.9]} 36... Rd1+ {[%clk 0:01:50]} 37. Ke4 {[%clk 0:01:13.8]} 37...
Nf5 {[%clk 0:01:32.2]} 38. Ke5 {[%clk 0:01:07.9]} 38... Nd6 {[%clk 0:01:23.7]}
39. Rb8+ {[%clk 0:01:07.3]} 39... Kg7 {[%clk 0:01:23.2]} 40. b3 {[%clk
0:00:58.7]} 40... Rd2 {[%clk 0:01:15.7]} 41. Bc6 {[%clk 0:00:52.2]} 41... Nf5
{[%clk 0:00:46.1]} 42. g4 {[%clk 0:00:45.4]} 42... Re2+ {[%clk 0:00:39.7]} 43.
Be4 {[%clk 0:00:35.4]} 43... Ne7 {[%clk 0:00:18.1]} 44. Rxb5 {[%clk 0:00:26.4]}
44... Rxf2 {[%clk 0:00:17.8]} 45. Rb7 {[%clk 0:00:20.6]} 45... Ng6+ {[%clk
0:00:16.2]} 46. Kd4 {[%clk 0:00:18.3]} 46... Rxh2 {[%clk 0:00:15]} 47. b4 {[%clk
0:00:15.8]} 47... e5+ {[%clk 0:00:13.4]} 48. Kc5 {[%clk 0:00:10.1]} 48... Re2
{[%clk 0:00:12.9]} 49. Bf5 {[%clk 0:00:09.6]} 49... h5 {[%clk 0:00:06.1]} 50.
gxh5 {[%clk 0:00:08.4]} 50... Nh4 {[%clk 0:00:06.6]} 51. Be6 {[%clk 0:00:05.6]}
51... Rc2+ {[%clk 0:00:05.8]} 52. Kd6 {[%clk 0:00:03.1]} 52... e4 {[%clk
0:00:02.5]} 0-1